fUSD/lending_fUSD_20260618
["ID","MTS","AMOUNT","RATE_DAILY","PERIOD"]
[425352971,1781712013000,500.0,0.00028899,120]
[425352970,1781712013000,500.0,0.0002863,120]
[425352972,1781712014000,500.0,0.00028999,120]
[425352973,1781712014000,500.0,0.00030129,120]
[425352974,1781712015000,500.0,0.00030129,120]
[425352975,1781712027000,350.0,0.00014099,2]
[425352978,1781712063000,500.0,0.00030137,120]
[425352980,1781712071000,500.0,0.00030137,120]
[425352981,1781712081000,800.0,0.00030137,120]
[425352983,1781712089000,1000.0,0.00030137,120]
[425352984,1781712100000,500.0,0.00030137,120]
[425352986,1781712110000,500.0,0.00030137,120]
[425352993,1781712279000,207.968308,0.00015647,60]
[425352994,1781712331000,-350.0,0.00015647,2]
[425352995,1781712331000,-150.0,0.00015856,2]
[425352996,1781712331000,-150.0,0.00016013,2]
[425352999,1781712331000,-150.0,0.00016484,2]
[425352997,1781712331000,-150.0,0.0001617,2]
[425353000,1781712331000,-43.45027275,0.00016641,2]
[425352998,1781712331000,-150.0,0.00016327,2]
[425353001,1781712335000,898.51588839,0.0003013,120]
[425353002,1781712422000,840.0,0.000301,120]
[425353003,1781712442000,-311.7658874,0.00017129,2]
[425353004,1781712446000,-38.2341126,0.00017129,2]
[425353006,1781712446000,-162.113724,0.00018447,2]
[425353005,1781712446000,-250.0,0.00017212,2]
[425353007,1781712446000,-166.66,0.00018514,2]
[425353008,1781712446000,-96.96784637,0.00018547,2]
[425353039,1781712632000,-71.59694299,0.00019397,2]
[425353042,1781712632000,-509.79383475,0.00019397,2]
[425353040,1781712632000,-500.0,0.00019397,2]
[425353050,1781712632000,-151.0,0.00019442,2]
[425353044,1781712632000,-2295.80575015,0.000194,2]
[425353043,1781712632000,-500.0,0.00019397,2]
[425353046,1781712632000,-153.0,0.00019442,2]
[425353048,1781712632000,-150.0,0.00019442,2]
[425353049,1781712632000,-152.0,0.00019442,2]
[425353045,1781712632000,-152.0,0.00019442,2]
[425353047,1781712632000,-151.0,0.00019442,2]
[425353052,1781712632000,-152.0,0.00019442,2]
[425353062,1781712632000,-1000.0,0.00019442,2]
[425353051,1781712632000,-151.0,0.00019442,2]
[425353064,1781712632000,-1000.0,0.00019442,2]
[425353053,1781712632000,-151.0,0.00019442,2]
[425353065,1781712632000,-1000.0,0.00019442,2]
[425353057,1781712632000,-151.0,0.00019442,2]
[425353038,1781712632000,-428.40305701,0.00019397,2]
[425353037,1781712632000,-500.0,0.00019397,2]
[425353027,1781712632000,-500.0,0.00019397,2]
[425353035,1781712632000,-500.0,0.00019397,2]
[425353016,1781712632000,-350.01,0.00017967,2]
[425353020,1781712632000,-1126.61996026,0.00019361,2]
[425353018,1781712632000,-166.66,0.00019293,2]
[425353017,1781712632000,-166.66,0.00018903,2]
[425353019,1781712632000,-162.11372399,0.00019297,2]
[425353021,1781712632000,-38.04929983,0.00019382,2]
[425353022,1781712632000,-311.95070017,0.00019382,2]
[425353023,1781712632000,-500.0,0.00019397,2]
[425353054,1781712632000,-150.0,0.00019442,2]
[425353028,1781712632000,-500.0,0.00019397,2]
[425353029,1781712632000,-500.0,0.00019397,2]
[425353030,1781712632000,-394.93742483,0.00019397,2]
[425353025,1781712632000,-101.41183517,0.00019397,2]
[425353026,1781712632000,-500.0,0.00019397,2]
[425353024,1781712632000,-398.58816483,0.00019397,2]
[425353031,1781712632000,-105.06257517,0.00019397,2]
[425353032,1781712632000,-500.0,0.00019397,2]
[425353036,1781712632000,-500.0,0.00019397,2]
[425353033,1781712632000,-500.0,0.00019397,2]
[425353034,1781712632000,-500.0,0.00019397,2]
[425353055,1781712632000,-153.0,0.00019442,2]
[425353041,1781712632000,-538.22713475,0.00019397,2]
[425353060,1781712632000,-150.0,0.00019442,2]
[425353090,1781712632000,-457.5316,0.000198,2]
[425353091,1781712632000,-593.42867112,0.00019803,2]
[425353097,1781712632000,-216.17170803,0.00019913,2]
[425353095,1781712632000,-162.13261455,0.0001987,2]
[425353094,1781712632000,-162.13261455,0.0001987,2]
[425353093,1781712632000,-162.13261455,0.0001987,2]
[425353092,1781712632000,-500.0,0.00019816,2]
[425353099,1781712632000,-440.29011403,0.0002,2]
[425353096,1781712632000,-151.0,0.00019909,2]
[425353100,1781712632000,-689.51983087,0.0002,2]
[425353101,1781712632000,-166.66,0.00020073,2]
[425353103,1781712632000,-108.85303905,0.0002009,2]
[425353106,1781712632000,-350.0,0.00020732,3]
[425353102,1781712632000,-391.14696095,0.0002009,2]
[425353104,1781712632000,-166.66,0.00020462,2]
[425353105,1781712632000,-408.0,0.00020573,2]
[425353108,1781712632000,-1129.55,0.00021056,2]
[425353107,1781712632000,-399.0,0.00020851,2]
[425353058,1781712632000,-151.0,0.00019442,2]
[425353085,1781712632000,-500.0,0.00019799,2]
[425353088,1781712632000,-13738.37323514,0.000198,2]
[425353098,1781712632000,-1497.22454223,0.0002,5]
[425353086,1781712632000,-166.44431561,0.00019799,2]
[425353056,1781712632000,-150.13075189,0.00019442,2]
[425353089,1781712632000,-9336.37846486,0.000198,2]
[425353068,1781712632000,-1000.0,0.00019442,2]
[425353067,1781712632000,-1000.0,0.00019442,2]
[425353080,1781712632000,-167.08199364,0.00019799,2]
[425353069,1781712632000,-150.0,0.00019442,2]
[425353077,1781712632000,-150.0,0.00019542,2]
[425353079,1781712632000,-166.66,0.00019683,2]
[425353074,1781712632000,-150.0,0.00019451,2]
[425353070,1781712632000,-152.0,0.00019442,2]
[425353076,1781712632000,-152.0,0.0001948,2]
[425353072,1781712632000,-152.0,0.00019444,2]
[425353071,1781712632000,-151.0,0.00019442,2]
[425353075,1781712632000,-160.0,0.00019454,2]
[425353081,1781712632000,-500.0,0.00019799,2]
[425353087,1781712632000,-173.66061519,0.00019799,2]
[425353083,1781712632000,-269.78151105,0.00019799,2]
[425353082,1781712632000,-190.3444545,0.00019799,2]
[425353078,1781712632000,-500.0,0.00019542,2]
[425353084,1781712632000,-500.0,0.00019799,2]
[425353152,1781712633000,-593.42867106,0.00027246,2]
[425353148,1781712633000,-150.71686786,0.00026981,7]
[425353149,1781712633000,-1985.0,0.00027,2]
[425353143,1781712633000,-202.0,0.00026,2]
[425353147,1781712633000,-500.0,0.00026767,2]
[425353146,1781712633000,-350.0,0.00026611,8]
[425353144,1781712633000,-160.63,0.00026002,2]
[425353145,1781712633000,-200.0,0.00026303,2]
[425353139,1781712633000,-350.0,0.00025543,6]
[425353158,1781712633000,-200.0,0.00027819,2]
[425353142,1781712633000,-658.80655446,0.00026,2]
[425353141,1781712633000,-593.42867106,0.00025757,2]
[425353160,1781712633000,-16500.0,0.00028,2]
[425353161,1781712633000,-245.79274565,0.00028213,2]
[425353163,1781712633000,-160.6575136,0.00028259,7]
[425353154,1781712633000,-6080.67,0.00027397,10]
[425353162,1781712633000,-169.19794692,0.00028259,7]
[425353153,1781712633000,-399.0,0.00027397,2]
[425353159,1781712633000,-2123.0,0.00028,2]
[425353157,1781712633000,-374.44,0.00027802,2]
[425353155,1781712633000,-500.0,0.000275,7]
[425353156,1781712633000,-350.0,0.0002763,9]
[425353165,1781712633000,-186.35705867,0.0002826,7]
[425353176,1781712633000,-301.43373572,0.0002826,7]
[425353166,1781712633000,-182.09478293,0.0002826,7]
[425353150,1781712633000,-200.0,0.00027061,2]
[425353168,1781712633000,-180.85027707,0.0002826,7]
[425353164,1781712633000,-176.92707035,0.00028259,7]
[425353151,1781712633000,-500.0,0.00027137,2]
[425353121,1781712633000,-273.0,0.00022865,2]
[425353125,1781712633000,-205.46,0.00023405,2]
[425353167,1781712633000,-164.77006705,0.0002826,7]
[425353111,1781712633000,-213.89,0.0002158,2]
[425353110,1781712633000,-593.42867106,0.00021292,2]
[425353109,1781712633000,-3686.79,0.00021056,2]
[425353113,1781712633000,-9999.99,0.00021757,2]
[425353123,1781712633000,-350.0,0.0002325,4]
[425353114,1781712633000,-185.01080146,0.000219,2]
[425353115,1781712633000,-205.49711767,0.00021918,2]
[425353117,1781712633000,-350.0,0.00022021,4]
[425353120,1781712633000,-593.42867106,0.0002278,2]
[425353122,1781712633000,-273.0,0.00023239,2]
[425353119,1781712633000,-474.54077855,0.00022407,7]
[425353118,1781712633000,-150.0,0.00022282,2]
[425353140,1781712633000,-200.0,0.00025545,2]
[425353112,1781712633000,-185.01080146,0.000217,2]
[425353127,1781712633000,-273.0,0.00023989,2]
[425353124,1781712633000,-500.0,0.0002337,2]
[425353126,1781712633000,-273.0,0.00023614,2]
[425353130,1781712633000,-273.0,0.00024364,2]
[425353129,1781712633000,-593.42867106,0.00024269,2]
[425353128,1781712633000,-200.0,0.00024029,2]
[425353135,1781712633000,-4471.632,0.00024407,7]
[425353133,1781712633000,-2209.24202051,0.00024407,7]
[425353132,1781712633000,-1252.32062256,0.00024407,7]
[425353134,1781712633000,-3304.89393659,0.00024407,7]
[425353136,1781712633000,-350.0,0.00024423,5]
[425353138,1781712633000,-200.0,0.00024787,2]
[425353137,1781712633000,-317.31,0.00024658,2]
[425353116,1781712633000,-5000.0,0.00021952,2]
[425353169,1781712633000,-193.9775433,0.0002826,7]
[425353182,1781712633000,-500.0,0.0002842,7]
[425353174,1781712633000,-180.32277573,0.0002826,7]
[425353207,1781712633000,-6158.14,0.0002863,30]
[425353204,1781712633000,-500.0,0.0002863,7]
[425353213,1781712633000,-276.98,0.00028656,2]
[425353212,1781712633000,-277.47,0.00028656,2]
[425353208,1781712633000,-6186.28,0.0002863,30]
[425353209,1781712633000,-1879.55,0.0002863,30]
[425353206,1781712633000,-1872.98,0.0002863,30]
[425353211,1781712633000,-953.91,0.00028633,30]
[425353210,1781712633000,-951.61,0.00028633,30]
[425353216,1781712633000,-276.98,0.00028692,7]
[425353227,1781712633000,-6158.14,0.00028797,7]
[425353226,1781712633000,-1872.98,0.00028797,7]
[425353218,1781712633000,-276.98,0.00028728,30]
[425353205,1781712633000,-160.0,0.0002863,30]
[425353215,1781712633000,-277.47,0.00028692,7]
[425353219,1781712633000,-593.42867106,0.00028734,2]
[425353225,1781712633000,-1856.20865815,0.00028797,2]
[425353223,1781712633000,-250.0,0.00028767,11]
[425353221,1781712633000,-276.98,0.00028764,2]
[425353220,1781712633000,-277.47,0.00028764,2]
[425353224,1781712633000,-230.35483298,0.00028797,2]
[425353222,1781712633000,-250.0,0.00028767,11]
[425353228,1781712633000,-6186.28,0.00028797,7]
[425353229,1781712633000,-1879.55,0.00028797,7]
[425353232,1781712633000,-953.91,0.000288,7]
[425353231,1781712633000,-277.47,0.000288,7]
[425353230,1781712633000,-951.61,0.000288,7]
[425353170,1781712633000,-183.43856389,0.0002826,7]
[425353217,1781712633000,-277.47,0.00028728,30]
[425353203,1781712633000,-512.09132885,0.0002863,10]
[425353214,1781712633000,-1000.0,0.00028658,2]
[425353198,1781712633000,-350.0,0.00028602,11]
[425353173,1781712633000,-179.28886767,0.0002826,7]
[425353172,1781712633000,-192.33047416,0.0002826,7]
[425353171,1781712633000,-234.72865154,0.0002826,7]
[425353175,1781712633000,-200.56995328,0.0002826,2]
[425353202,1781712633000,-500.0,0.00028629,2]
[425353178,1781712633000,-151.0,0.00028267,2]
[425353179,1781712633000,-500.0,0.00028312,3]
[425353180,1781712633000,-2048.366,0.0002832,2]
[425353188,1781712633000,-500.0,0.00028536,7]
[425353185,1781712633000,-500.0,0.0002842,7]
[425353189,1781712633000,-500.0,0.00028536,7]
[425353181,1781712633000,-500.0,0.0002842,7]
[425353187,1781712633000,-500.0,0.00028536,2]
[425353233,1781712633000,-276.98,0.000288,7]
[425353177,1781712633000,-173.6190097,0.0002826,7]
[425353186,1781712633000,-716.8,0.0002842,7]
[425353183,1781712633000,-500.0,0.0002842,7]
[425353197,1781712633000,-276.98,0.00028584,7]
[425353199,1781712633000,-1293.0,0.00028615,5]
[425353196,1781712633000,-277.47,0.00028584,7]
[425353195,1781712633000,-276.98,0.00028549,2]
[425353193,1781712633000,-500.0,0.00028536,60]
[425353200,1781712633000,-277.47,0.0002862,30]
[425353194,1781712633000,-277.47,0.00028548,2]
[425353192,1781712633000,-500.0,0.00028536,60]
[425353201,1781712633000,-276.98,0.0002862,30]
[425353191,1781712633000,-500.0,0.00028536,7]
[425353184,1781712633000,-500.0,0.0002842,7]
[425353190,1781712633000,-500.0,0.00028536,7]
[425353251,1781712634000,-159.0,0.0002895,30]
[425353252,1781712634000,-159.0,0.0002895,30]
[425353247,1781712634000,-157.0,0.00028949,30]
[425353250,1781712634000,-155.0,0.00028949,30]
[425353248,1781712634000,-152.0,0.00028949,30]
[425353245,1781712634000,-277.47,0.00028944,30]
[425353244,1781712634000,-276.98,0.00028908,7]
[425353243,1781712634000,-277.47,0.00028908,7]
[425353246,1781712634000,-276.98,0.00028944,30]
[425353238,1781712634000,-136630.05089033,0.0002888,60]
[425353242,1781712634000,-169007.90688402,0.000289,2]
[425353240,1781712634000,-500.0,0.00028899,7]
[425353241,1781712634000,-500.0,0.00028899,2]
[425353239,1781712634000,-151.0,0.00028897,7]
[425353236,1781712634000,-277.47,0.00028872,2]
[425353237,1781712634000,-276.98,0.00028872,2]
[425353234,1781712634000,-277.47,0.00028836,30]
[425353235,1781712634000,-276.98,0.00028836,30]
[425353258,1781712634000,-6158.14,0.00028964,2]
[425353249,1781712634000,-152.54905192,0.00028949,30]
[425353253,1781712634000,-153.0,0.0002895,30]
[425353264,1781712634000,-276.98,0.0002898,2]
[425353254,1781712634000,-151.0,0.0002895,30]
[425353255,1781712634000,-157.05871861,0.0002895,30]
[425353277,1781712634000,-5757.54991668,0.00029,2]
[425353275,1781712634000,-2503.51031067,0.00029,2]
[425353274,1781712634000,-431.00079052,0.00029,2]
[425353276,1781712634000,-220.0442745,0.00029,2]
[425353272,1781712634000,-171.56243931,0.00029,2]
[425353270,1781712634000,-14885.23460199,0.00029,2]
[425353271,1781712634000,-11218.76700992,0.00029,2]
[425353268,1781712634000,-5000.0,0.00029,2]
[425353269,1781712634000,-27643.00457518,0.00029,2]
[425353273,1781712634000,-7999.999999,0.00029,2]
[425353267,1781712634000,-500.0,0.00028999,2]
[425353266,1781712634000,-500.0,0.00028999,7]
[425353257,1781712634000,-1872.98,0.00028964,2]
[425353261,1781712634000,-951.61,0.00028967,2]
[425353260,1781712634000,-1879.55,0.00028964,2]
[425353263,1781712634000,-277.47,0.0002898,2]
[425353262,1781712634000,-953.91,0.00028967,2]
[425353265,1781712634000,-11234.03897222,0.0002899,7]
[425353259,1781712634000,-6186.28,0.00028964,2]
[425353256,1781712634000,-158.0,0.0002895,30]
[425353303,1781712638000,-376.59,0.000291,2]
[425353320,1781712638000,-152.40547972,0.00029113,7]
[425353309,1781712638000,-206.68587957,0.00029111,7]
[425353319,1781712638000,-207.98637455,0.00029113,7]
[425353322,1781712638000,-372.71411734,0.00029113,7]
[425353318,1781712638000,-207.04686764,0.00029111,7]
[425353308,1781712638000,-213.7798616,0.00029111,7]
[425353317,1781712638000,-353.85414069,0.00029111,7]
[425353314,1781712638000,-232.01294771,0.00029111,7]
[425353307,1781712638000,-212.17175526,0.00029111,7]
[425353311,1781712638000,-249.22485625,0.00029111,7]
[425353310,1781712638000,-233.0234632,0.00029111,7]
[425353315,1781712638000,-275.44817074,0.00029111,7]
[425353316,1781712638000,-321.31502721,0.00029111,7]
[425353312,1781712638000,-202.69981592,0.00029111,7]
[425353305,1781712638000,-193.2779557,0.00029111,7]
[425353313,1781712638000,-327.49381974,0.00029111,7]
[425353301,1781712638000,-276.98,0.00029088,2]
[425353291,1781712638000,-1889.38,0.00028964,2]
[425353299,1781712638000,-744.16,0.0002903,2]
[425353323,1781712638000,-245.44032968,0.00029113,7]
[425353285,1781712638000,-1889.38,0.0002863,30]
[425353286,1781712638000,-6217.27,0.0002863,30]
[425353293,1781712638000,-952.46,0.00028967,2]
[425353290,1781712638000,-952.46,0.000288,7]
[425353292,1781712638000,-6217.27,0.00028964,2]
[425353294,1781712638000,-67684.0503295,0.00029,2]
[425353287,1781712638000,-952.46,0.00028633,30]
[425353288,1781712638000,-1889.38,0.00028797,7]
[425353289,1781712638000,-6217.27,0.00028797,7]
[425353295,1781712638000,-1252.25327799,0.00029,7]
[425353296,1781712638000,-191.80540898,0.00029,2]
[425353298,1781712638000,-276.98,0.00029016,7]
[425353297,1781712638000,-250.01993717,0.00029,2]
[425353302,1781712638000,-376.59,0.000291,2]
[425353306,1781712638000,-338.39589383,0.00029111,7]
[425353300,1781712638000,-276.98,0.00029052,30]
[425353304,1781712638000,-219.87968705,0.00029111,7]
[425353326,1781712638000,-329.54013411,0.00029113,7]
[425353327,1781712638000,-361.70055415,0.00029113,7]
[425353335,1781712638000,-213.53460753,0.00029113,7]
[425353341,1781712638000,-165.71292312,0.00029119,7]
[425353342,1781712638000,-196.05401877,0.00029119,5]
[425353358,1781712638000,-210.10461679,0.00029119,7]
[425353362,1781712638000,-6186.28,0.00029132,30]
[425353355,1781712638000,-204.58245068,0.00029119,7]
[425353357,1781712638000,-234.21723798,0.00029119,7]
[425353359,1781712638000,-276.98,0.00029124,7]
[425353354,1781712638000,-189.2831374,0.00029119,7]
[425353365,1781712638000,-6217.27,0.00029132,30]
[425353361,1781712638000,-4000.0,0.0002913,3]
[425353360,1781712638000,-302.49820449,0.0002913,20]
[425353363,1781712638000,-1879.55,0.00029132,30]
[425353364,1781712638000,-1889.38,0.00029132,30]
[425353366,1781712638000,-953.91,0.00029134,30]
[425353367,1781712638000,-952.46,0.00029134,30]
[425353369,1781712638000,-276.98,0.00029196,2]
[425353325,1781712638000,-364.18956586,0.00029113,7]
[425353344,1781712638000,-248.36651999,0.00029119,7]
[425353338,1781712638000,-452.15060357,0.00029113,7]
[425353356,1781712638000,-249.41930434,0.00029119,2]
[425353339,1781712638000,-347.23801939,0.00029113,7]
[425353333,1781712638000,-218.46932316,0.00029113,7]
[425353352,1781712638000,-218.69658761,0.00029119,7]
[425353328,1781712638000,-387.95508661,0.00029113,7]
[425353329,1781712638000,-366.87712778,0.00029113,7]
[425353368,1781712638000,-276.98,0.0002916,30]
[425353330,1781712638000,-469.45730307,0.00029113,7]
[425353332,1781712638000,-384.66094831,0.00029113,7]
[425353324,1781712638000,-243.55433839,0.00029113,7]
[425353334,1781712638000,-358.57773534,0.00029113,7]
[425353345,1781712638000,-225.79632064,0.00029119,7]
[425353337,1781712638000,-401.13990656,0.00029113,2]
[425353347,1781712638000,-198.62962412,0.00029119,7]
[425353351,1781712638000,-218.81766069,0.00029119,5]
[425353336,1781712638000,-360.64555145,0.00029113,7]
[425353349,1781712638000,-217.74934537,0.00029119,7]
[425353340,1781712638000,-212.26664988,0.00029113,7]
[425353331,1781712638000,-218.60798668,0.00029113,7]
[425353353,1781712638000,-226.39764101,0.00029119,2]
[425353410,1781712639000,-174.08276585,0.0002968,7]
[425353408,1781712639000,-498.44971249,0.0002968,7]
[425353409,1781712639000,-233.97262355,0.0002968,7]
[425353417,1781712639000,-436.20913464,0.0002968,7]
[425353407,1781712639000,-466.04692639,0.0002968,7]
[425353418,1781712639000,-232.87883147,0.0002968,7]
[425353405,1781712639000,-159.67155246,0.0002968,7]
[425353406,1781712639000,-413.37175915,0.0002968,7]
[425353402,1781712639000,-427.55972319,0.0002968,7]
[425353414,1781712639000,-464.02589543,0.0002968,7]
[425353401,1781712639000,-392.23222405,0.0002968,7]
[425353416,1781712639000,-247.21875952,0.0002968,7]
[425353411,1781712639000,-165.64447569,0.0002968,7]
[425353421,1781712639000,-481.97254081,0.0002968,7]
[425353412,1781712639000,-405.39963185,0.0002968,7]
[425353415,1781712639000,-165.49040856,0.0002968,2]
[425353419,1781712639000,-151.22218563,0.0002968,7]
[425353430,1781712639000,-229.71518198,0.00029681,7]
[425353420,1781712639000,-550.89634148,0.0002968,7]
[425353431,1781712639000,-487.10867679,0.00029681,7]
[425353426,1781712639000,-429.70904658,0.00029681,7]
[425353427,1781712639000,-304.81095943,0.00029681,7]
[425353424,1781712639000,-203.18865755,0.0002968,7]
[425353429,1781712639000,-559.07117601,0.00029681,7]
[425353423,1781712639000,-414.09373528,0.0002968,7]
[425353422,1781712639000,-530.78121104,0.0002968,7]
[425353403,1781712639000,-156.96589794,0.0002968,7]
[425353413,1781712639000,-163.74690987,0.0002968,7]
[425353398,1781712639000,-507.59384075,0.0002968,7]
[425353383,1781712639000,-663.5190383,0.00029356,2]
[425353395,1781712639000,-159.94155698,0.0002968,7]
[425353372,1781712639000,-169.01,0.00029212,9]
[425353373,1781712639000,-277.01,0.00029232,7]
[425353375,1781712639000,-6186.28,0.00029299,7]
[425353377,1781712639000,-1889.38,0.00029299,7]
[425353374,1781712639000,-1856.20865813,0.00029286,2]
[425353370,1781712639000,-177.1,0.00029212,9]
[425353371,1781712639000,-218.46,0.00029212,9]
[425353379,1781712639000,-953.91,0.00029301,7]
[425353376,1781712639000,-1879.55,0.00029299,7]
[425353381,1781712639000,-1642.0703,0.00029326,2]
[425353425,1781712639000,-415.97274911,0.00029681,7]
[425353384,1781712639000,-230.35483293,0.00029426,2]
[425353380,1781712639000,-952.46,0.00029301,7]
[425353397,1781712639000,-164.86196921,0.0002968,7]
[425353382,1781712639000,-1030.0,0.00029356,2]
[425353390,1781712639000,-350.0,0.0002953,13]
[425353385,1781712639000,-1889.38,0.00029467,2]
[425353387,1781712639000,-952.46,0.00029468,2]
[425353386,1781712639000,-6217.27,0.00029467,2]
[425353389,1781712639000,-500.0,0.00029486,4]
[425353388,1781712639000,-3686.79,0.00029478,2]
[425353392,1781712639000,-439.75937409,0.0002968,7]
[425353394,1781712639000,-386.55591139,0.0002968,7]
[425353396,1781712639000,-407.91833247,0.0002968,7]
[425353399,1781712639000,-350.09250233,0.0002968,7]
[425353400,1781712639000,-424.34351051,0.0002968,7]
[425353393,1781712639000,-159.98959902,0.0002968,2]
[425353404,1781712639000,-304.16737871,0.0002968,7]
[425353391,1781712639000,-150.0,0.00029534,2]
[425353428,1781712639000,-490.88065935,0.00029681,7]
[425353378,1781712639000,-6217.27,0.00029299,7]
[425353434,1781712639000,-494.31020116,0.00029681,7]
[425353464,1781712639000,-204.4944782,0.00029687,7]
[425353465,1781712639000,-342.06878405,0.00029687,7]
[425353473,1781712639000,-311.31878383,0.00029687,7]
[425353469,1781712639000,-426.66196277,0.00029687,7]
[425353478,1781712639000,-226.39028697,0.00029687,7]
[425353472,1781712639000,-392.10803754,0.00029687,5]
[425353476,1781712639000,-201.37116919,0.00029687,7]
[425353471,1781712639000,-451.59264128,0.00029687,7]
[425353474,1781712639000,-496.73303999,0.00029687,7]
[425353470,1781712639000,-331.42584623,0.00029687,7]
[425353480,1781712639000,-222.28804575,0.00029687,7]
[425353477,1781712639000,-435.49869073,0.00029687,7]
[425353479,1781712639000,-437.63532138,0.00029687,5]
[425353462,1781712639000,-205.50347092,0.00029687,7]
[425353475,1781712639000,-397.25924823,0.00029687,7]
[425353483,1781712639000,-452.79528203,0.00029687,2]
[425353484,1781712639000,-225.43118096,0.00029687,2]
[425353491,1781712639000,-468.43447595,0.00029687,7]
[425353492,1781712639000,-420.20923358,0.00029687,7]
[425353482,1781712639000,-194.47476297,0.00029687,7]
[425353485,1781712639000,-378.5662748,0.00029687,7]
[425353486,1781712639000,-410.45976411,0.00029687,7]
[425353493,1781712639000,-13537.24,0.000297,2]
[425353488,1781712639000,-227.38575425,0.00029687,7]
[425353487,1781712639000,-178.6763225,0.00029687,2]
[425353489,1781712639000,-409.16490135,0.00029687,7]
[425353490,1781712639000,-498.83860868,0.00029687,2]
[425353432,1781712639000,-546.28434878,0.00029681,7]
[425353481,1781712639000,-437.39317523,0.00029687,7]
[425353463,1781712639000,-344.56828772,0.00029687,7]
[425353494,1781712639000,-23744.31151175,0.00029703,7]
[425353460,1781712639000,-203.20216895,0.00029687,7]
[425353435,1781712639000,-542.55083122,0.00029681,7]
[425353436,1781712639000,-581.93262991,0.00029681,7]
[425353443,1781712639000,-359.34590452,0.00029681,7]
[425353437,1781712639000,-550.31569167,0.00029681,7]
[425353433,1781712639000,-160.3876876,0.00029681,7]
[425353438,1781712639000,-204.73440241,0.00029681,7]
[425353461,1781712639000,-194.25540563,0.00029687,7]
[425353442,1781712639000,-418.8938871,0.00029681,7]
[425353441,1781712639000,-426.30980553,0.00029681,7]
[425353440,1781712639000,-441.49358948,0.00029681,7]
[425353445,1781712639000,-427.45002542,0.00029681,7]
[425353453,1781712639000,-601.70985984,0.00029681,2]
[425353454,1781712639000,-602.86747143,0.00029681,7]
[425353444,1781712639000,-437.21597337,0.00029681,7]
[425353439,1781712639000,-704.18595461,0.00029681,7]
[425353452,1781712639000,-540.96832718,0.00029681,7]
[425353456,1781712639000,-424.53329977,0.00029681,7]
[425353459,1781712639000,-306.10611733,0.00029687,7]
[425353468,1781712639000,-245.70421563,0.00029687,7]
[425353466,1781712639000,-182.67589398,0.00029687,7]
[425353457,1781712639000,-171.89536854,0.00029687,7]
[425353458,1781712639000,-184.48924583,0.00029687,7]
[425353467,1781712639000,-377.62593374,0.00029687,7]
[425353455,1781712639000,-520.85702909,0.00029681,7]
[425353451,1781712639000,-427.06921505,0.00029681,7]
[425353446,1781712639000,-576.99142247,0.00029681,7]
[425353449,1781712639000,-350.91174697,0.00029681,7]
[425353448,1781712639000,-436.93864632,0.00029681,7]
[425353447,1781712639000,-361.7534569,0.00029681,7]
[425353450,1781712639000,-537.86660302,0.00029681,7]
[425353512,1781712640000,-1176.67,0.000298,7]
[425353506,1781712640000,-1889.38,0.00029634,30]
[425353504,1781712640000,-276.86,0.0002855,2]
[425353508,1781712640000,-5678.40870369,0.000298,2]
[425353514,1781712640000,-383.0,0.00029934,2]
[425353513,1781712640000,-575.98,0.00029828,8]
[425353510,1781712640000,-8736.87204685,0.000298,2]
[425353496,1781712640000,-151.0,0.00029797,7]
[425353499,1781712640000,-529.72740985,0.000298,2]
[425353502,1781712640000,-734.07725081,0.000298,2]
[425353501,1781712640000,-992.3355828,0.000298,2]